lending/lending_fUSD_20260310
["ID","MTS","AMOUNT","RATE_DAILY","PERIOD"]
[408143855,1773172241363,-500.0,0.00014899,2]
[408143856,1773172241372,-500.0,0.00014899,2]
[408143857,1773172241381,-522.2,0.00014899,2]
[408143858,1773172241390,-500.0,0.00014899,2]
[408143859,1773172241399,-500.0,0.00014899,2]
[408143860,1773172241409,-500.0,0.00014899,2]
[408143861,1773172241418,-531.9,0.00014899,2]
[408143862,1773172241427,-531.9,0.00014899,2]
[408143863,1773172241436,-531.9,0.00014899,2]
[408143864,1773172241445,-531.9,0.00014899,2]
[408143865,1773172241454,-531.9,0.00014899,2]
[408143866,1773172241463,-531.9,0.00014899,2]
[408143867,1773172241472,-531.9,0.00014899,2]
[408143868,1773172241482,-531.9,0.00014899,2]
[408143869,1773172241491,-531.9,0.00014899,2]
[408143870,1773172241500,-531.9,0.00014899,2]
[408143871,1773172241509,-531.9,0.00014899,2]
[408143872,1773172241519,-500.0,0.00014899,2]
[408143873,1773172241528,-500.0,0.00014899,2]
[408143874,1773172241537,-500.0,0.00014899,2]
[408143875,1773172241547,-500.0,0.00014899,2]
[408143876,1773172241556,-500.0,0.00014899,2]
[408143877,1773172241565,-500.0,0.00014899,2]
[408143878,1773172241574,-500.0,0.00014899,2]
[408143879,1773172241583,-500.0,0.00014899,2]
[408143880,1773172241591,-500.0,0.00014899,2]
[408143881,1773172241601,-500.0,0.00014899,2]
[408143882,1773172241611,-500.0,0.00014899,2]
[408143883,1773172241619,-500.0,0.00014899,2]
[408143884,1773172241629,-500.0,0.00014899,2]
[408143885,1773172241638,-500.0,0.00014899,2]
[408143886,1773172241647,-500.0,0.00014899,2]
[408143887,1773172241655,-500.0,0.00014899,2]
[408143888,1773172241664,-509.45035815,0.00014899,2]
[408143889,1773172241673,-500.0,0.00014899,2]
[408143890,1773172241683,-500.0,0.00014899,2]
[408143891,1773172241692,-500.0,0.00014899,2]
[408143892,1773172241701,-500.0,0.00014899,2]
[408143893,1773172241711,-500.0,0.00014899,2]
[408143894,1773172241720,-500.0,0.00014899,2]
[408143895,1773172241729,-500.0,0.00014899,2]
[408143896,1773172241738,-500.0,0.00014899,2]
[408143897,1773172241747,-500.0,0.00014899,2]
[408143898,1773172241756,-500.0,0.00014899,2]
[408143899,1773172241766,-500.0,0.00014899,2]
[408143900,1773172241775,-500.0,0.00014899,2]
[408143901,1773172241784,-500.0,0.00014899,2]
[408143902,1773172241793,-500.0,0.00014899,2]
[408143903,1773172241802,-500.0,0.00014899,2]
[408143904,1773172241812,-500.0,0.00014899,2]
[408143905,1773172241822,-500.0,0.00014899,2]
[408143906,1773172241833,-500.0,0.00014899,2]
[408143907,1773172241844,-500.0,0.00014899,2]
[408143908,1773172241853,-500.0,0.00014899,2]
[408143909,1773172241864,-500.0,0.00014899,2]
[408143910,1773172241874,-500.0,0.00014899,2]
[408143911,1773172241885,-500.0,0.00014899,2]
[408143912,1773172241894,-500.0,0.00014899,2]
[408143913,1773172241903,-500.0,0.00014899,2]
[408143914,1773172241912,-500.0,0.00014899,2]
[408143915,1773172241921,-500.0,0.00014899,2]
[408143916,1773172241931,-500.0,0.00014899,2]
[408143917,1773172241940,-500.0,0.00014899,2]
[408143918,1773172241949,-500.0,0.00014899,2]
[408143919,1773172241959,-530.0627847,0.00014899,2]
[408143920,1773172241969,-500.0,0.00014899,2]
[408143921,1773172241978,-500.0,0.00014899,2]
[408143922,1773172241987,-500.0,0.00014899,2]
[408143923,1773172241997,-595.06336316,0.00014899,2]
[408143924,1773172242007,-500.0,0.00014899,2]
[408143925,1773172242017,-500.0,0.00014899,2]
[408143926,1773172242026,-500.0,0.00014899,2]
[408143927,1773172242035,-500.0,0.00014899,2]
[408143928,1773172242044,-500.0,0.00014899,2]
[408143929,1773172242053,-500.0,0.00014899,2]
[408143930,1773172242061,-500.0,0.00014899,2]
[408143931,1773172242071,-500.0,0.00014899,2]
[408143932,1773172242080,-500.0,0.00014899,2]
[408143933,1773172242089,-500.0,0.00014899,2]
[408143934,1773172242099,-500.0,0.00014899,2]
[408143935,1773172242108,-500.0,0.00014899,2]
[408143936,1773172242117,-500.0,0.00014899,2]
[408143937,1773172242127,-500.0,0.00014899,2]
[408143938,1773172242137,-504.92020981,0.00014899,2]
[408143939,1773172242146,-556.70483873,0.000149,2]
[408143940,1773172242156,-4900.0,0.000149,5]
[408143941,1773172242166,-250.0,0.00015,2]
[408143942,1773172242176,-359.03555763,0.00015,30]
[408143943,1773172242185,-500.0,0.0001505,2]
[408143944,1773172242195,-1047.62,0.00015165,2]
[408143945,1773172242205,-6499.51294027,0.00015172,2]
[408143946,1773172242215,-496.0,0.00015198,2]
[408143947,1773172242224,-164.11826784,0.00015321,2]
[408143948,1773172242233,-1000.0,0.00015321,2]
[408143949,1773172242242,-1000.0,0.00015321,2]
[408143950,1773172242251,-445.92650306,0.00015321,2]
[408143951,1773172242260,-1000.0,0.00015321,2]
[408143952,1773172242270,-1000.0,0.00015321,2]
[408143953,1773172242279,-1000.0,0.00015321,2]
[408143954,1773172242288,-1000.0,0.00015321,2]
[408143955,1773172242303,-1000.0,0.00015321,2]
[408143956,1773172242312,-1000.0,0.00015321,2]
[408143957,1773172242322,-1000.0,0.00015321,2]
[408143958,1773172242331,-500.0,0.00015324,2]
[408143959,1773172242342,-6681.46973277,0.00015344,2]
[408143960,1773172242352,-14083.04541717,0.00015365,2]
[408143961,1773172242361,-1000.0,0.00015421,2]
[408143962,1773172242371,-1000.0,0.00015421,2]
[408143963,1773172242382,-1047.62,0.00015439,2]
[408143964,1773172242392,-417.0,0.000155,2]
[408143965,1773172242401,-500.0,0.00015598,2]
[408143966,1773172242410,-193.0,0.00015605,2]
[408143967,1773172242421,-215.68,0.00015631,2]
[408143968,1773172242431,-377.39126498,0.00015648,2]
[408143969,1773172242440,-420.0,0.00015683,2]
[408143970,1773172242451,-5000.0,0.00015709,2]
[408143971,1773172242460,-300.0,0.00015709,2]
[408143972,1773172242470,-250.0,0.00015709,2]
[408143973,1773172242481,-193.0,0.00015709,2]
[408143974,1773172242492,-5000.0,0.00015709,2]
[408143975,1773172242503,-300.0,0.00015709,2]
[408143976,1773172242512,-500.0,0.00015709,2]
[408143977,1773172242521,-300.0,0.00015709,2]
[408143978,1773172242530,-500.0,0.00015709,2]
[408143979,1773172242539,-300.15834651,0.00015709,2]
[408143980,1773172242548,-250.0,0.00015709,2]
[408143981,1773172242557,-600.0,0.00015709,2]
[408143982,1773172242567,-4335.61859724,0.00015709,2]
[408143983,1773172242576,-381.28444093,0.00015709,2]
[408143984,1773172242585,-367.1844389,0.00015709,2]
[408143985,1773172242594,-286.95333336,0.00015709,2]
[408143986,1773172242603,-600.0,0.00015709,2]
[408143987,1773172242612,-1047.62,0.00015713,2]
[408143988,1773172242621,-1680.0,0.0001573,2]
[408143989,1773172242630,-500.0,0.00015735,2]
[408143990,1773172242639,-516.64002131,0.00015735,2]
[408143991,1773172242648,-500.0,0.00015735,2]
[408143992,1773172242658,-500.0,0.00015735,2]
[408143993,1773172242667,-500.0,0.00015735,2]
[408143994,1773172242677,-500.0,0.00015735,2]
[408143995,1773172242686,-500.0,0.00015735,2]
[408143996,1773172242697,-6499.51294027,0.00015758,2]
[408143997,1773172242706,-255.0,0.00015786,2]
[408143998,1773172242715,-637.10281941,0.00015868,2]
[408143999,1773172242725,-1500.0,0.00015868,2]
[408144000,1773172242734,-1500.0,0.00015868,2]
[408144001,1773172242744,-1500.0,0.00015868,2]
[408144002,1773172242753,-1500.0,0.00015868,2]
[408144003,1773172242763,-1500.0,0.00015868,2]
[408144004,1773172242773,-500.0,0.00015872,2]
[408144005,1773172242782,-6200.0,0.000159,5]
[408144006,1773172242791,-14083.04541717,0.00015932,2]
[408144007,1773172242800,-1175.0,0.00015964,2]
[408144008,1773172242809,-1000.0,0.00015968,2]
[408144009,1773172242818,-1500.0,0.00015968,2]
[408144010,1773172242827,-500.0,0.00015977,2]
[408144011,1773172242836,-1047.62,0.00015987,2]
[408144012,1773172242845,-6681.46973277,0.00016104,2]
[408144013,1773172242855,-6029.74,0.00016116,2]
[408144015,1773172242864,-150.99,0.00016116,2]
[408144016,1773172242873,-3715.38,0.00016116,2]
[408144018,1773172242882,-7671.75,0.00016116,2]
[408144020,1773172242891,-73703.64,0.00016116,2]
[408144022,1773172242901,-999.99,0.00016116,2]
[408144023,1773172242910,-869.83,0.00016116,2]
[408144024,1773172242920,-3198.48,0.00016116,2]
[408144025,1773172242930,-9999.99,0.00016116,2]
[408144026,1773172242939,-6594.12,0.00016116,2]
[408144027,1773172242948,-299.99,0.00016116,4]
[408144028,1773172242958,-7995.06,0.00016116,2]
[408144030,1773172242967,-9999.99,0.00016116,2]
[408144032,1773172242976,-622.62914275,0.00016146,2]
[408144033,1773172242985,-350.0,0.00016164,2]
[408144035,1773172242994,-350.0,0.00016164,2]
[408144037,1773172243004,-303.80696665,0.00016164,2]
[408144039,1773172243013,-161.52562053,0.00016167,2]
[408144041,1773172243023,-1047.62,0.00016261,2]
[408144042,1773172243032,-6499.51294027,0.00016345,2]
[408144043,1773172243041,-215.68,0.00016413,2]
[408144044,1773172243050,-2000.0,0.00016416,2]
[408144045,1773172243061,-2000.0,0.00016416,2]
[408144046,1773172243070,-1500.0,0.00016416,2]
[408144047,1773172243080,-500.0,0.00016416,2]
[408144048,1773172243088,-500.0,0.00016438,2]
[408144049,1773172243098,-500.0,0.00016438,2]
[408144050,1773172243108,-500.0,0.00016438,2]
[408144051,1773172243118,-500.0,0.00016438,2]
[408144052,1773172243127,-500.0,0.00016438,2]
[408144053,1773172243136,-500.0,0.00016438,2]
[408144054,1773172243146,-500.0,0.00016438,2]
[408144055,1773172243157,-500.0,0.00016438,2]
[408144056,1773172243166,-500.0,0.00016438,2]
[408144057,1773172243177,-500.0,0.00016438,2]
[408144058,1773172243187,-500.0,0.00016438,2]
[408144059,1773172243197,-500.0,0.00016438,2]
[408144060,1773172243207,-500.0,0.00016438,2]
[408144061,1773172243217,-500.0,0.00016493,2]
[408144062,1773172243227,-14083.04541717,0.00016499,2]
[408144063,1773172243238,-1959.11608175,0.00016516,2]
[408144064,1773172243248,-1047.62,0.00016535,2]
[408144065,1773172243258,-377.39126498,0.00016711,2]
[408144066,1773172243267,-500.0,0.00016725,2]
[408144068,1773172243277,-500.0,0.00016725,2]
[408144070,1773172243286,-500.0,0.00016725,2]
[408144072,1773172243298,-500.0,0.00016725,2]
[408144073,1773172243307,-338.5975808,0.00016725,2]
[408144074,1773172243316,-500.19685753,0.00016725,2]
[408144075,1773172243325,-1047.62,0.00016809,2]
[408144076,1773172243334,-6681.46973277,0.00016863,2]
[408144077,1773172243343,-6499.51294027,0.00016931,2]
[408144078,1773172243352,-783.18830784,0.00016964,2]
[408144079,1773172243361,-2500.0,0.00016964,2]
[408144080,1773172243370,-510.0,0.00017,2]
[408144081,1773172243379,-433.0,0.00017002,2]
[408144082,1773172243388,-516.85988717,0.00017017,2]
[408144083,1773172243397,-555.93722716,0.00017017,2]
[408144084,1773172243406,-500.0,0.00017017,2]
[408144085,1773172243415,-500.0,0.00017017,2]
[408144086,1773172243424,-500.0,0.00017017,2]
[408144087,1773172243435,-513.88974837,0.00017017,2]
[408144088,1773172243444,-210.17759829,0.00017017,2]
[408144089,1773172243453,-162.45092924,0.00017017,2]
[408144090,1773172243463,-220.89067282,0.00017045,2]
[408144091,1773172243472,-153.75048617,0.00017045,2]
[408144092,1773172243481,-500.0,0.00017045,2]
[408144093,1773172243490,-500.0,0.00017045,2]
[408144094,1773172243499,-200.0,0.00017045,2]
[408144095,1773172243509,-150.0,0.00017045,2]
[408144096,1773172243518,-500.0,0.00017045,2]
[408144097,1773172243527,-500.0,0.00017045,2]
[408144098,1773172243536,-500.0,0.00017045,2]
[408144099,1773172243545,-150.0,0.00017045,2]
[408144100,1773172243554,-150.0,0.00017045,2]
[408144101,1773172243563,-500.0,0.00017045,2]
[408144102,1773172243573,-500.0,0.00017045,2]
[408144103,1773172243582,-150.0,0.00017045,2]
[408144104,1773172243591,-14083.04541717,0.00017066,2]
[408144105,1773172243600,-1047.62,0.00017083,2]
[408144106,1773172243609,-500.0,0.000171,2]
[408144107,1773172243619,-552.49408871,0.000171,2]
[408144108,1773172243628,-500.0,0.000171,2]
[408144109,1773172243637,-150.0,0.000171,2]
[408144110,1773172243647,-500.0,0.000171,2]
[408144111,1773172243656,-500.0,0.000171,2]
[408144112,1773172243666,-150.0,0.000171,2]
[408144113,1773172243676,-150.0,0.000171,2]
[408144114,1773172243686,-600.0,0.000171,2]
[408144115,1773172243696,-500.0,0.000171,2]
[408144116,1773172243705,-500.0,0.00017155,2]
[408144117,1773172243715,-500.0,0.00017155,2]
[408144118,1773172243726,-150.0,0.00017155,2]
[408144119,1773172243736,-500.0,0.00017155,2]
[408144120,1773172243746,-150.0,0.00017155,2]
[408144121,1773172243755,-500.0,0.00017155,2]
[408144122,1773172243765,-150.0,0.00017155,2]
[408144123,1773172243774,-500.0,0.00017155,2]
[408144124,1773172243784,-168.09945814,0.00017171,2]
[408144125,1773172243794,-500.0,0.00017171,2]
[408144126,1773172243803,-500.0,0.00017171,2]
[408144127,1773172243813,-500.0,0.00017171,2]
[408144128,1773172243822,-500.0,0.00017171,2]
[408144129,1773172243831,-500.0,0.00017171,2]
[408144130,1773172243841,-500.0,0.00017171,2]
[408144131,1773172243850,-500.0,0.00017171,2]
[408144132,1773172243860,-500.0,0.00017171,2]
[408144133,1773172243869,-500.0,0.00017171,2]
[408144134,1773172243879,-500.0,0.00017171,2]
[408144135,1773172243888,-500.0,0.00017171,2]
[408144136,1773172243898,-311.58893439,0.00017171,2]
[408144137,1773172243907,-500.0,0.00017171,2]
[408144138,1773172243917,-500.0,0.00017171,2]
[408144139,1773172243928,-166.21138236,0.00017171,2]
[408144140,1773172243938,-162.16516283,0.00017171,2]
[408144141,1773172243947,-500.0,0.00017171,2]
[408144142,1773172243957,-500.0,0.00017171,2]
[408144143,1773172243967,-158.89335882,0.00017171,2]
[408144144,1773172243976,-438.17886325,0.00017171,2]
[408144145,1773172243986,-500.19933179,0.00017171,2]
[408144146,1773172243996,-564.98385943,0.00017171,2]
[408144147,1773172244006,-500.17118036,0.00017171,2]
[408144148,1773172244016,-587.0,0.00017176,2]
[408144149,1773172244026,-215.68,0.00017195,2]
[408144150,1773172244035,-500.0,0.00017209,2]
[408144151,1773172244045,-204.83861542,0.00017209,2]
[408144152,1773172244055,-200.0,0.00017209,2]
[408144153,1773172244065,-150.0,0.00017209,2]
[408144154,1773172244075,-500.0,0.00017209,2]
[408144155,1773172244084,-150.0,0.00017209,2]
[408144156,1773172244094,-500.0,0.00017209,2]
[408144157,1773172244103,-500.0,0.00017264,2]
[408144158,1773172244113,-150.0,0.00017264,2]
[408144159,1773172244123,-500.0,0.00017264,2]
[408144160,1773172244133,-150.0,0.00017264,2]
[408144161,1773172244142,-508.22060755,0.00017264,2]
[408144162,1773172244152,-1000.0,0.00017273,2]
[408144163,1773172244163,-1000.0,0.00017273,2]
[408144164,1773172244172,-1000.0,0.00017273,2]
[408144165,1773172244184,-1000.0,0.00017273,2]
[408144166,1773172244193,-5187.39862422,0.00017293,2]
[408144167,1773172244203,-388.66679332,0.00017293,2]
[408144168,1773172244213,-842.73671246,0.00017293,2]
[408144169,1773172244223,-2351.0,0.00017303,2]
[408144170,1773172244232,-500.0,0.00017319,2]
[408144171,1773172244482,-250.0,0.00017319,2]
[408144172,1773172244492,-250.0,0.00017319,2]
[408144173,1773172244502,-500.0,0.00017319,2]
[408144174,1773172244511,-1047.62,0.00017357,2]
[408144175,1773172244522,-500.0,0.00017374,2]
[408144176,1773172244531,-526.0,0.00017374,2]
[408144177,1773172244541,-556.70483873,0.000174,2]
[408144178,1773172244550,-346.46936844,0.00017429,2]
[408144179,1773172244560,-3000.0,0.00017512,2]
[408144180,1773172244569,-6499.51294027,0.00017518,2]
[408144181,1773172244578,-605.45252019,0.00017565,2]
[408144182,1773172244588,-1000.0,0.00017565,2]
[408144183,1773172244597,-1000.0,0.00017565,2]
[408144184,1773172244607,-6681.46973277,0.00017622,2]
[408144185,1773172244616,-1047.62,0.00017631,2]
[408144186,1773172244625,-14083.04541717,0.00017632,2]
[408144187,1773172244636,-1000.0,0.00017719,2]
[408144188,1773172244645,-1000.0,0.00017719,2]
[408144189,1773172244655,-575.55800162,0.00017719,2]
[408144190,1773172244665,-558.85528432,0.00017719,2]
[408144191,1773172244675,-1000.0,0.00017719,2]
[408144192,1773172244686,-1000.0,0.00017719,2]
[408144193,1773172244696,-1000.0,0.00017719,2]
[408144194,1773172244705,-1000.0,0.00017719,2]
[408144195,1773172244715,-1000.0,0.00017719,2]
[408144196,1773172244726,-1000.0,0.00017719,2]
[408144197,1773172244735,-1000.0,0.00017719,2]
[408144198,1773172244745,-1000.0,0.00017719,2]
[408144199,1773172244755,-1000.0,0.00017719,2]
[408144200,1773172244764,-1000.0,0.00017719,2]
[408144201,1773172244774,-596.36617318,0.00017719,2]
[408144202,1773172244784,-531.9,0.00017724,2]
[408144203,1773172244794,-500.0,0.00017724,2]
[408144204,1773172244803,-500.0,0.00017724,2]
[408144205,1773172244812,-500.0,0.00017724,2]
[408144206,1773172244822,-377.39126498,0.00017774,2]
[408144207,1773172244831,-200.76649827,0.00017808,2]
[408144208,1773172244841,-800.0,0.00017808,2]
[408144209,1773172244851,-1500.0,0.00017821,2]
[408144210,1773172244859,-1500.0,0.00017821,2]
[408144211,1773172244869,-1500.0,0.00017821,2]
[408144212,1773172244878,-1500.0,0.00017821,2]
[408144213,1773172244888,-381.46,0.00017833,2]
[408144214,1773172244897,-515.7545181,0.000179,2]
[408144215,1773172244907,-1047.63410102,0.00017905,2]
[408144216,1773172244917,-979.94,0.00017918,2]
[408144217,1773172244928,-178.66,0.0001793,2]
[408144218,1773172244938,-215.68,0.00017976,2]
[408144219,1773172244947,-594.01,0.00017998,2]
[408144220,1773172244957,-152.0,0.00018,2]
[408144221,1773172244967,-3500.0,0.0001806,2]
[408144222,1773172244977,-6499.51294027,0.00018104,2]
[408144223,1773172244986,-1500.0,0.00018113,2]
[408144224,1773172244996,-1500.0,0.00018113,2]
[408144225,1773172245007,-14083.04541717,0.00018199,2]
[408144226,1773172245016,-1500.0,0.00018267,2]
[408144227,1773172245026,-1500.0,0.00018267,2]
[408144228,1773172245035,-1500.0,0.00018267,2]
[408144229,1773172245045,-1500.0,0.00018267,2]
[408144230,1773172245056,-1500.0,0.00018267,2]
[408144231,1773172245065,-1500.0,0.00018267,2]
[408144232,1773172245075,-1500.0,0.00018267,2]
[408144233,1773172245085,-1500.0,0.00018267,2]
[408144234,1773172245094,-1500.0,0.00018267,2]
[408144235,1773172245104,-1500.0,0.00018267,2]
[408144236,1773172245113,-409.60365407,0.00018267,2]
[408144237,1773172245123,-1500.0,0.00018267,2]
[408144238,1773172245132,-1000.0,0.00018304,2]
[408144239,1773172245142,-736.0,0.00018307,2]
[408144240,1773172245152,-2000.0,0.00018369,2]
[408144241,1773172245162,-2000.0,0.00018369,2]
[408144242,1773172245172,-2000.0,0.00018369,2]
[408144243,1773172245183,-2000.0,0.00018369,2]
[408144244,1773172245195,-6681.46973277,0.00018381,2]
[408144245,1773172245204,-510.0,0.000184,3]
[408144246,1773172245214,-4000.0,0.00018608,2]
[408144247,1773172245224,-1755.30859165,0.00018661,2]
[408144248,1773172245233,-2000.0,0.00018661,2]
[408144249,1773172245242,-489.72,0.00018676,2]
[408144250,1773172245252,-6499.51294027,0.00018691,2]
[408144251,1773172245261,-215.68,0.00018758,2]
[408144252,1773172245271,-14083.04541717,0.00018766,2]
[408144253,1773172245281,-12662.54763355,0.0001879,4]
[408144254,1773172245290,-823.0,0.00018811,2]
[408144255,1773172245305,-2000.0,0.00018815,2]
[408144256,1773172245315,-2000.0,0.00018815,2]
[408144257,1773172245325,-2000.0,0.00018815,2]
[408144258,1773172245336,-2000.0,0.00018815,2]
[408144259,1773172245347,-2000.0,0.00018815,2]
[408144260,1773172245357,-1828.83911274,0.00018815,2]
[408144261,1773172245367,-2000.0,0.00018815,2]
[408144262,1773172245379,-671.63748537,0.00018815,2]
[408144263,1773172245388,-2000.0,0.00018815,2]
[408144264,1773172245397,-2000.0,0.00018815,2]
[408144265,1773172245406,-1422.50772487,0.00018815,2]
[408144266,1773172245416,-377.39126498,0.00018837,2]
[408144267,1773172245425,-250.0,0.0001887,2]
[408144268,1773172245437,-178.66,0.00018895,2]
[408144269,1773172245448,-594.01,0.00018898,2]
[408144270,1773172245457,-2500.0,0.00018917,2]
[408144271,1773172245466,-665.26185461,0.00018917,2]
[408144272,1773172245480,-2500.0,0.00018917,2]
[408144273,1773172245489,-2500.0,0.00018917,2]
[408144274,1773172245498,-166.7,0.00018958,2]
[408144275,1773172245507,-172.91703981,0.00018992,2]
[408144276,1773172245516,-160.0,0.00018992,2]
[408144277,1773172245526,-500.0,0.00018998,2]
[408144278,1773172245537,-500.0,0.00018998,2]
[408144279,1773172245546,-190.16,0.00018999,2]
[408144280,1773172245555,-424.139,0.00018999,2]
[408144281,1773172245564,-1328.27659266,0.00018999,2]
[408144282,1773172245573,-187.88530125,0.00018999,2]
[408144283,1773172245583,-500.0,0.00018999,2]
[408144284,1773172245592,-670.58624095,0.00018999,2]
[408144285,1773172245601,-250.0,0.00018999,2]
[408144286,1773172245610,-1500.0,0.00018999,2]
[408144287,1773172245619,-500.0,0.00018999,2]
[408144288,1773172245628,-1500.0,0.00018999,2]
[408144289,1773172245637,-626.54460475,0.00018999,2]
[408144290,1773172245646,-1500.0,0.00018999,2]
[408144291,1773172245656,-1500.0,0.00018999,2]
[408144292,1773172245665,-1500.0,0.00018999,2]
[408144293,1773172245674,-1500.0,0.00018999,2]
[408144294,1773172245683,-1500.0,0.00018999,2]
[408144295,1773172245692,-1500.0,0.00018999,2]
[408144296,1773172245701,-1500.0,0.00018999,2]
[408144297,1773172245711,-1500.0,0.00018999,2]
[408144298,1773172245719,-3000.0,0.00018999,2]
[408144299,1773172245728,-1500.0,0.00018999,2]
[408144300,1773172245738,-3000.0,0.00018999,2]
[408144301,1773172245748,-3000.0,0.00018999,2]
[408144302,1773172245757,-1500.0,0.00018999,2]
[408144303,1773172245767,-250.0,0.00018999,2]
[408144304,1773172245776,-3000.0,0.00018999,2]
[408144305,1773172245785,-1500.0,0.00018999,2]
[408144306,1773172245795,-3000.0,0.00018999,2]
[408144307,1773172245804,-1500.0,0.00018999,2]
[408144308,1773172245814,-1506.77280813,0.00018999,2]
[408144309,1773172245823,-3000.0,0.00018999,2]
[408144310,1773172245833,-3000.0,0.00018999,2]
[408144311,1773172245843,-3000.0,0.00018999,2]
[408144312,1773172245852,-3000.0,0.00018999,2]
[408144313,1773172245862,-3000.0,0.00018999,2]
[408144314,1773172245871,-151.0,0.00018999,2]
[408144315,1773172245880,-3000.0,0.00018999,2]
[408144316,1773172245890,-3000.0,0.00018999,2]
[408144317,1773172245899,-3000.0,0.00018999,2]
[408144318,1773172245909,-174.61919141,0.00018999,2]
[408144319,1773172245918,-500.0,0.00018999,2]
[408144320,1773172245928,-200.0,0.00018999,2]
[408144321,1773172245937,-1000.0,0.00018999,2]
[408144322,1773172245947,-1500.0,0.00018999,2]
[408144323,1773172245956,-1500.0,0.00018999,2]
[408144324,1773172245966,-1500.0,0.00018999,2]
[408144325,1773172245975,-1500.0,0.00018999,2]
[408144326,1773172245984,-1000.0,0.00018999,2]
[408144327,1773172245994,-194.72792766,0.00018999,2]
[408144328,1773172246003,-644.79446245,0.00018999,2]
[408144329,1773172246012,-262.90206542,0.00018999,2]
[408144330,1773172246021,-202.15363139,0.00019,2]
[408144331,1773172246031,-688.97898661,0.00019,2]
[408144332,1773172246041,-3292.0,0.00019033,2]
[408144333,1773172246051,-500.0,0.00019054,2]
[408144334,1773172246061,-151.0,0.00019054,2]
[408144335,1773172246070,-500.0,0.00019109,2]
[408144336,1773172246079,-151.0,0.00019109,2]
[408144337,1773172246089,-6681.46973277,0.00019141,2]
[408144338,1773172246099,-1000.0,0.00019156,2]
[408144339,1773172246108,-500.0,0.00019157,2]
[408144340,1773172246117,-500.0,0.00019157,2]
[408144341,1773172246127,-500.0,0.00019157,2]
[408144342,1773172246137,-500.0,0.00019157,2]
[408144343,1773172246146,-150.81923528,0.00019157,2]
[408144345,1773172246156,-150.36304931,0.00019157,2]
[408144346,1773172246165,-500.0,0.00019157,2]
[408144347,1773172246174,-152.81580585,0.00019157,2]
[408144348,1773172246184,-500.0,0.00019164,2]
[408144349,1773172246193,-151.0,0.00019164,2]
[408144350,1773172246202,-3000.0,0.00019178,2]
[408144352,1773172246212,-3000.0,0.00019178,2]
[408144354,1773172246221,-3000.0,0.00019178,2]
[408144356,1773172246231,-3000.0,0.00019178,2]
[408144358,1773172246240,-3000.0,0.00019178,2]
[408144359,1773172246249,-3000.0,0.00019178,2]
[408144360,1773172246259,-3000.0,0.00019178,2]
[408144361,1773172246268,-3000.0,0.00019178,2]
[408144362,1773172246277,-3000.0,0.00019178,2]
[408144363,1773172246286,-3000.0,0.00019178,2]
[408144364,1773172246302,-3000.0,0.00019178,2]
[408144365,1773172246313,-787.0,0.00019178,2]
[408144366,1773172246323,-558.0,0.00019178,2]
[408144367,1773172246333,-150.0,0.00019178,2]
[408144368,1773172246342,-2000.0,0.000192,2]
[408144369,1773172246351,-2500.0,0.00019208,2]
[408144370,1773172246362,-500.0,0.00019211,2]
[408144371,1773172246372,-3000.0,0.00019211,2]
[408144372,1773172246382,-500.0,0.00019212,2]